[Event "FIDE World Rapid Chess Championship 2021"]
[White "Kovalev, Vladislav"]
[Black "Czarnota, Pawel"]
[WhiteFideId "13504398"]
[BlackFideId "1121219"]
[WhiteElo "2647"]
[BlackElo "2511"]
[Result "1/2-1/2"]
[Round "07"]
[TimeControl "900+10"]
[Date "2021.12.27"]
[WhiteClock "0:00:26"]
[BlackClock "0:02:38"]

1. e4 {[%clk 0:15:00]}  c5 {[%clk 0:15:00]} 2. Be2 {[%clk 0:15:00]}  Nc6 {[%clk 0:15:00]} 3. d3 {[%clk 0:15:00]}  e6 {[%clk 0:14:28]} 4. f4 {[%clk 0:15:48]}  d5 {[%clk 0:14:28]} 5. Nf3 {[%clk 0:15:48]}  Nf6 {[%clk 0:14:28]} 6. e5 {[%clk 0:15:48]}  Nd7 {[%clk 0:14:28]} 7. O-O {[%clk 0:15:48]}  Be7 {[%clk 0:14:28]} 8. c3 {[%clk 0:15:48]}  O-O {[%clk 0:14:28]} 9. Na3 {[%clk 0:15:48]}  f6 {[%clk 0:14:12]} 10. d4 {[%clk 0:15:03]}  cxd4 {[%clk 0:14:12]} 11. cxd4 {[%clk 0:15:03]}  Qb6 {[%clk 0:11:47]} 12. Kh1 {[%clk 0:14:33]}  fxe5 {[%clk 0:11:47]} 13. fxe5 {[%clk 0:14:33]}  Rxf3 {[%clk 0:11:47]} 14. Bxf3 {[%clk 0:14:33]}  Qxd4 {[%clk 0:11:47]} 15. Qxd4 {[%clk 0:14:07]}  Nxd4 {[%clk 0:10:58]} 16. Bf4 {[%clk 0:14:07]}  Nc5 {[%clk 0:10:58]} 17. Rad1 {[%clk 0:12:27]}  Nxf3 {[%clk 0:09:44]} 18. Rxf3 {[%clk 0:12:27]}  Bd7 {[%clk 0:09:44]} 19. Nc2 {[%clk 0:12:27]}  Ba4 {[%clk 0:09:44]} 20. b3 {[%clk 0:12:27]}  Be8 {[%clk 0:09:44]} 21. Rc1 {[%clk 0:12:00]}  Bh5 {[%clk 0:08:58]} 22. Rc3 {[%clk 0:08:21]}  a5 {[%clk 0:08:30]} 23. Be3 {[%clk 0:08:21]}  b6 {[%clk 0:08:30]} 24. Nd4 {[%clk 0:08:21]}  Bf8 {[%clk 0:08:45]} 25. h3 {[%clk 0:05:01]}  h6 {[%clk 0:08:45]} 26. Kh2 {[%clk 0:05:01]}  Bg6 {[%clk 0:08:45]} 27. Nb5 {[%clk 0:05:01]}  Rd8 {[%clk 0:08:45]} 28. Bd4 {[%clk 0:04:48]}  Rd7 {[%clk 0:06:50]} 29. Nd6 {[%clk 0:02:16]}  Bxd6 {[%clk 0:04:42]} 30. exd6 {[%clk 0:01:01]}  Rxd6 {[%clk 0:04:42]} 31. Bxc5 {[%clk 0:01:01]}  bxc5 {[%clk 0:04:42]} 32. Rxc5 {[%clk 0:01:01]}  d4 {[%clk 0:04:51]} 33. Rc6 {[%clk 0:01:01]}  Rd5 {[%clk 0:04:51]} 34. Rxe6 {[%clk 0:01:01]}  Bf5 {[%clk 0:04:51]} 35. Re2 {[%clk 0:01:01]}  d3 {[%clk 0:04:51]} 36. Rd2 {[%clk 0:01:01]}  h5 {[%clk 0:04:51]} 37. Kg3 {[%clk 0:01:01]}  Kf7 {[%clk 0:03:24]} 38. Kf4 {[%clk 0:01:20]}  Bg6 {[%clk 0:03:24]} 39. Rc7+ {[%clk 0:01:20]}  Kf6 {[%clk 0:03:24]} 40. Rc6+ {[%clk 0:01:20]}  Kf7 {[%clk 0:03:24]} 41. Ke3 {[%clk 0:01:20]}  Bf5 {[%clk 0:03:24]} 42. Rf2 {[%clk 0:00:41]}  h4 {[%clk 0:02:41]} 43. Rc4 {[%clk 0:00:41]}  g5 {[%clk 0:02:41]} 44. Rc6 {[%clk 0:00:41]}  Ke7 {[%clk 0:02:41]} 45. Kd2 {[%clk 0:00:41]}  Kd7 {[%clk 0:02:41]} 46. Rf6 {[%clk 0:00:41]}  Be4 {[%clk 0:02:41]} 47. Ke3 {[%clk 0:00:41]}  Re5 {[%clk 0:02:41]} 48. Kd4 {[%clk 0:00:41]}  Rd5+ {[%clk 0:02:38]} 49. Ke3 {[%clk 0:00:28]}  Re5 {[%clk 0:02:38]} 50. Kd2 {[%clk 0:00:28]}  Rc5 {[%clk 0:02:38]} 51. Rh6 {[%clk 0:00:28]}  Rc2+ {[%clk 0:02:38]} 52. Ke3 {[%clk 0:00:28]}  Rxf2 {[%clk 0:02:38]} 53. Kxf2 {[%clk 0:00:28]}  Bxg2 {[%clk 0:02:38]} 54. Ke3 {[%clk 0:00:28]}  Bxh3 {[%clk 0:02:38]} 55. Rh5 {[%clk 0:00:28]}  Ke6 {[%clk 0:02:38]} 56. Rxg5 {[%clk 0:00:28]}  Bf5 {[%clk 0:02:38]} 57. Rg2 {[%clk 0:00:28]}  h3 {[%clk 0:02:38]} 58. Rf2 {[%clk 0:00:26]}  Ke5 {[%clk 0:02:38]} 59. Rh2 {[%clk 0:00:26]}  Bg4 {[%clk 0:02:38]} 60. Kxd3 {[%clk 0:00:26]}  Kf4 {[%clk 0:02:38]} 61. Kc4 {[%clk 0:00:26]}  Kg3 {[%clk 0:02:38]} 62. Rxh3+ {[%clk 0:00:26]}  Bxh3 {[%clk 0:02:38]} 63. Kb5 {[%clk 0:00:26]}  Kf4 {[%clk 0:02:38]} 64. Kxa5 {[%clk 0:00:26]}  Be6 {[%clk 0:02:38]} 65. Kb4 {[%clk 0:00:26]}  Ke5 {[%clk 0:02:38]} 66. Kc5 {[%clk 0:00:26]}  Bd5 {[%clk 0:02:38]} 1/2-1/2


[Site "http://www.Chess.com"]

[Event "FIDE World Rapid Chess Championship 2021"]
[White "Heimann, Andreas"]
[Black "Erigaisi, Arjun"]
[WhiteFideId "24624632"]
[BlackFideId "35009192"]
[WhiteElo "2616"]
[BlackElo "2397"]
[Result "1-0"]
[Round "07"]
[TimeControl "900+10"]
[Date "2021.12.27"]
[WhiteClock "0:00:00"]
[BlackClock "0:02:20"]

1. d4 {[%clk 0:15:00]}  Nf6 {[%clk 0:15:00]} 2. c4 {[%clk 0:15:00]}  e6 {[%clk 0:15:00]} 3. Nf3 {[%clk 0:15:00]}  d5 {[%clk 0:15:00]} 4. Nc3 {[%clk 0:15:00]}  Bb4 {[%clk 0:15:00]} 5. cxd5 {[%clk 0:15:00]}  exd5 {[%clk 0:15:00]} 6. Bg5 {[%clk 0:15:00]}  h6 {[%clk 0:15:00]} 7. Bh4 {[%clk 0:15:00]}  O-O {[%clk 0:15:00]} 8. e3 {[%clk 0:15:00]}  Bf5 {[%clk 0:15:00]} 9. Be2 {[%clk 0:14:55]}  Nbd7 {[%clk 0:15:35]} 10. Qb3 {[%clk 0:14:55]}  a5 {[%clk 0:15:35]} 11. a3 {[%clk 0:14:55]}  Bxc3+ {[%clk 0:15:35]} 12. bxc3 {[%clk 0:14:55]}  c5 {[%clk 0:13:24]} 13. Bxf6 {[%clk 0:12:37]}  c4 {[%clk 0:12:53]} 14. Qxc4 {[%clk 0:09:50]}  Nxf6 {[%clk 0:12:58]} 15. Qb3 {[%clk 0:09:50]}  Qc7 {[%clk 0:12:58]} 16. Nd2 {[%clk 0:09:50]}  Rfc8 {[%clk 0:12:58]} 17. Rc1 {[%clk 0:09:50]}  Be6 {[%clk 0:11:34]} 18. O-O {[%clk 0:09:34]}  a4 {[%clk 0:11:34]} 19. Qb4 {[%clk 0:09:34]}  b5 {[%clk 0:11:34]} 20. Qxb5 {[%clk 0:09:34]}  Rab8 {[%clk 0:11:34]} 21. Qxa4 {[%clk 0:09:34]}  Rb2 {[%clk 0:11:34]} 22. Qd1 {[%clk 0:09:34]}  Qa5 {[%clk 0:11:34]} 23. Nb3 {[%clk 0:09:03]}  Qxa3 {[%clk 0:10:50]} 24. Nc5 {[%clk 0:09:03]}  Bf5 {[%clk 0:10:50]} 25. c4 {[%clk 0:09:03]}  dxc4 {[%clk 0:10:50]} 26. Bxc4 {[%clk 0:09:03]}  Bg4 {[%clk 0:10:50]} 27. Qd3 {[%clk 0:09:03]}  Qb4 {[%clk 0:10:50]} 28. f3 {[%clk 0:09:03]}  Bh5 {[%clk 0:10:50]} 29. Ne4 {[%clk 0:09:03]}  Re8 {[%clk 0:10:54]} 30. Nxf6+ {[%clk 0:08:10]}  gxf6 {[%clk 0:10:54]} 31. Rb1 {[%clk 0:08:10]}  Rb8 {[%clk 0:10:10]} 32. Rxb2 {[%clk 0:06:21]}  Qxb2 {[%clk 0:10:10]} 33. Qf5 {[%clk 0:06:21]}  Qc3 {[%clk 0:10:10]} 34. Qxh5 {[%clk 0:06:21]}  Qxc4 {[%clk 0:10:10]} 35. Qxh6 {[%clk 0:06:21]}  Qe2 {[%clk 0:10:10]} 36. Qf4 {[%clk 0:05:41]}  Rb2 {[%clk 0:09:11]} 37. Qg3+ {[%clk 0:05:41]}  Kf8 {[%clk 0:09:11]} 38. Re1 {[%clk 0:05:41]}  Qd2 {[%clk 0:09:11]} 39. h4 {[%clk 0:05:41]}  f5 {[%clk 0:09:11]} 40. h5 {[%clk 0:05:41]}  Rb6 {[%clk 0:09:11]} 41. Qf2 {[%clk 0:05:41]}  Qc3 {[%clk 0:09:11]} 42. e4 {[%clk 0:04:27]}  f4 {[%clk 0:09:03]} 43. Kh2 {[%clk 0:04:27]}  Rh6 {[%clk 0:08:23]} 44. Qh4 {[%clk 0:02:33]}  Qxd4 {[%clk 0:08:23]} 45. Qg5 {[%clk 0:02:33]}  Qh8 {[%clk 0:08:23]} 46. Qd8+ {[%clk 0:02:33]}  Kg7 {[%clk 0:08:23]} 47. Qxh8+ {[%clk 0:02:33]}  Rxh8 {[%clk 0:08:23]} 48. Kh3 {[%clk 0:02:33]}  Kf6 {[%clk 0:08:23]} 49. Kh4 {[%clk 0:02:00]}  Rg8 {[%clk 0:07:01]} 50. Re2 {[%clk 0:02:00]}  Rg3 {[%clk 0:07:01]} 51. Ra2 {[%clk 0:02:00]}  Kg7 {[%clk 0:07:01]} 52. Ra5 {[%clk 0:02:00]}  f6 {[%clk 0:07:01]} 53. Ra7+ {[%clk 0:00:03]}  Kg8 {[%clk 0:06:22]} 54. h6 {[%clk 0:00:03]}  Rxg2 {[%clk 0:06:22]} 55. Rg7+ {[%clk 0:00:03]}  Rxg7 {[%clk 0:06:22]} 56. hxg7 {[%clk 0:00:03]}  Kxg7 {[%clk 0:06:22]} 57. Kg4 {[%clk 0:00:03]}  Kf7 {[%clk 0:06:22]} 58. Kxf4 {[%clk 0:00:03]}  Ke6 {[%clk 0:06:22]} 59. Kg3 {[%clk 0:00:03]}  Kd6 {[%clk 0:02:20]} 60. Kh4 {[%clk 0:00:00]}  Ke5 {[%clk 0:02:20]} 61. Kg4 {[%clk 0:00:00]}  Ke6 {[%clk 0:02:20]} 62. Kf4 {[%clk 0:00:00]}  Kf7 {[%clk 0:02:20]} 63. Kf5 {[%clk 0:00:00]}  Ke7 {[%clk 0:02:20]} 64. Kg6 {[%clk 0:00:00]} 1-0


[Site "http://www.Chess.com"]

[Event "FIDE World Rapid Chess Championship 2021"]
[White "Ter-Sahakyan, Samvel"]
[Black "Sychev, Klementy"]
[WhiteFideId "13302531"]
[BlackFideId "4114060"]
[WhiteElo "2573"]
[BlackElo "2461"]
[Result "1/2-1/2"]
[Round "07"]
[TimeControl "900+10"]
[Date "2021.12.27"]
[WhiteClock "0:00:32"]
[BlackClock "0:00:51"]

1. e4 {[%clk 0:15:00]}  c5 {[%clk 0:15:00]} 2. Nf3 {[%clk 0:15:00]}  e6 {[%clk 0:15:00]} 3. d4 {[%clk 0:15:00]}  cxd4 {[%clk 0:15:00]} 4. Nxd4 {[%clk 0:15:00]}  Nf6 {[%clk 0:15:00]} 5. Nc3 {[%clk 0:15:00]}  Nc6 {[%clk 0:15:00]} 6. Ndb5 {[%clk 0:15:47]}  Bc5 {[%clk 0:15:41]} 7. Bf4 {[%clk 0:15:47]}  O-O {[%clk 0:15:41]} 8. Bc7 {[%clk 0:15:47]}  Qe7 {[%clk 0:15:41]} 9. Bd6 {[%clk 0:15:47]}  Bxd6 {[%clk 0:15:41]} 10. Qxd6 {[%clk 0:15:47]}  Qd8 {[%clk 0:15:41]} 11. O-O-O {[%clk 0:15:47]}  a6 {[%clk 0:15:41]} 12. Nd4 {[%clk 0:15:47]}  Ne7 {[%clk 0:15:41]} 13. g4 {[%clk 0:14:46]}  b5 {[%clk 0:16:01]} 14. g5 {[%clk 0:14:46]}  Ne8 {[%clk 0:16:01]} 15. Qg3 {[%clk 0:14:46]}  b4 {[%clk 0:16:01]} 16. Nce2 {[%clk 0:14:46]}  Bb7 {[%clk 0:16:01]} 17. Bg2 {[%clk 0:12:57]}  a5 {[%clk 0:15:41]} 18. Kb1 {[%clk 0:11:59]}  a4 {[%clk 0:15:41]} 19. h4 {[%clk 0:11:59]}  Qc7 {[%clk 0:11:49]} 20. f4 {[%clk 0:12:02]}  Nd6 {[%clk 0:03:50]} 21. f5 {[%clk 0:10:26]}  exf5 {[%clk 0:03:13]} 22. h5 {[%clk 0:10:26]}  Rfc8 {[%clk 0:03:13]} 23. Qe5 {[%clk 0:04:27]}  Ra5 {[%clk 0:02:00]} 24. Qxe7 {[%clk 0:04:27]}  b3 {[%clk 0:02:00]} 25. Nc3 {[%clk 0:04:27]}  bxa2+ {[%clk 0:02:00]} 26. Nxa2 {[%clk 0:04:27]}  a3 {[%clk 0:00:53]} 27. b3 {[%clk 0:03:25]}  Bxe4 {[%clk 0:00:53]} 28. Bxe4 {[%clk 0:01:40]}  Nxe4 {[%clk 0:00:17]} 29. g6 {[%clk 0:01:40]}  hxg6 {[%clk 0:00:17]} 30. hxg6 {[%clk 0:01:40]}  fxg6 {[%clk 0:00:17]} 31. Rd3 {[%clk 0:01:40]}  Nf2 {[%clk 0:00:17]} 32. Rc3 {[%clk 0:01:40]}  Rc5 {[%clk 0:00:17]} 33. Rxc5 {[%clk 0:00:15]}  Qxc5 {[%clk 0:00:33]} 34. Qxc5 {[%clk 0:00:15]}  Rxc5 {[%clk 0:00:33]} 35. Rg1 {[%clk 0:00:15]}  Rd5 {[%clk 0:00:33]} 36. c3 {[%clk 0:00:15]}  Kf7 {[%clk 0:00:33]} 37. Kc2 {[%clk 0:00:15]}  Ne4 {[%clk 0:00:33]} 38. b4 {[%clk 0:00:15]}  g5 {[%clk 0:00:33]} 39. b5 {[%clk 0:00:15]}  f4 {[%clk 0:00:33]} 40. Kd3 {[%clk 0:00:15]}  Nd6 {[%clk 0:00:33]} 41. Re1 {[%clk 0:00:13]}  Nxb5 {[%clk 0:00:20]} 42. Kc4 {[%clk 0:00:13]}  Nc7 {[%clk 0:00:20]} 43. Nb4 {[%clk 0:00:13]}  Ra5 {[%clk 0:00:20]} 44. Nb3 {[%clk 0:00:13]}  Rf5 {[%clk 0:00:20]} 45. Nd4 {[%clk 0:00:13]}  Ra5 {[%clk 0:00:20]} 46. Nb3 {[%clk 0:00:13]}  Ra7 {[%clk 0:00:20]} 47. Nc5 {[%clk 0:00:13]}  Ne6 {[%clk 0:00:20]} 48. Ncd3 {[%clk 0:00:13]}  Kg6 {[%clk 0:00:20]} 49. Nd5 {[%clk 0:00:13]}  a2 {[%clk 0:00:20]} 50. Ne5+ {[%clk 0:00:13]}  Kf5 {[%clk 0:00:20]} 51. Ne7+ {[%clk 0:00:13]}  Kf6 {[%clk 0:00:20]} 52. Nd5+ {[%clk 0:00:13]}  Kf5 {[%clk 0:00:20]} 53. Ne7+ {[%clk 0:00:32]}  Kf6 {[%clk 0:00:51]} 54. Ng8+ {[%clk 0:00:32]}  Kf5 {[%clk 0:00:51]} 1/2-1/2


[Site "http://www.Chess.com"]

[Event "FIDE World Rapid Chess Championship 2021"]
[White "Vakhidov, Jakhongir"]
[Black "Mikhalevski, Victor"]
[WhiteFideId "14201801"]
[BlackFideId "2801914"]
[WhiteElo "2566"]
[BlackElo "2366"]
[Result "0-1"]
[Round "07"]
[TimeControl "900+10"]
[Date "2021.12.27"]
[WhiteClock "0:01:29"]
[BlackClock "0:05:44"]

1. c4 {[%clk 0:15:00]}  Nf6 {[%clk 0:15:00]} 2. Nc3 {[%clk 0:15:00]}  d5 {[%clk 0:15:00]} 3. cxd5 {[%clk 0:15:00]}  Nxd5 {[%clk 0:15:00]} 4. g3 {[%clk 0:15:00]}  e5 {[%clk 0:15:00]} 5. Bg2 {[%clk 0:15:00]}  Nb6 {[%clk 0:15:00]} 6. Nf3 {[%clk 0:15:00]}  Nc6 {[%clk 0:15:00]} 7. O-O {[%clk 0:15:00]}  Be7 {[%clk 0:15:00]} 8. b3 {[%clk 0:15:00]}  O-O {[%clk 0:15:00]} 9. Bb2 {[%clk 0:15:00]}  Re8 {[%clk 0:16:09]} 10. Rc1 {[%clk 0:16:11]}  Bf8 {[%clk 0:16:09]} 11. Ne4 {[%clk 0:16:11]}  a5 {[%clk 0:16:09]} 12. Qc2 {[%clk 0:16:11]}  f5 {[%clk 0:15:29]} 13. Nc3 {[%clk 0:14:45]}  e4 {[%clk 0:15:29]} 14. Ne1 {[%clk 0:14:45]}  Nd4 {[%clk 0:15:29]} 15. Qd1 {[%clk 0:14:45]}  Nc6 {[%clk 0:13:52]} 16. d3 {[%clk 0:14:07]}  e3 {[%clk 0:10:21]} 17. fxe3 {[%clk 0:09:20]}  Rxe3 {[%clk 0:10:06]} 18. Nb5 {[%clk 0:09:20]}  a4 {[%clk 0:10:14]} 19. Nc2 {[%clk 0:07:38]}  Re8 {[%clk 0:08:38]} 20. Kh1 {[%clk 0:07:38]}  Ne5 {[%clk 0:08:45]} 21. d4 {[%clk 0:03:31]}  Ng4 {[%clk 0:06:33]} 22. d5 {[%clk 0:02:16]}  Bd7 {[%clk 0:06:33]} 23. Nbd4 {[%clk 0:02:16]}  Qg5 {[%clk 0:06:33]} 24. Qd3 {[%clk 0:01:29]}  a3 {[%clk 0:05:44]} 25. Nf3 {[%clk 0:01:29]}  axb2 {[%clk 0:05:44]} 0-1


[Site "http://www.Chess.com"]

[Event "FIDE World Rapid Chess Championship 2021"]
[White "Puranik, Abhimanyu"]
[Black "Dvirnyy, Danyyil"]
[WhiteFideId "5061245"]
[BlackFideId "817570"]
[WhiteElo "2472"]
[BlackElo "2550"]
[Result "1-0"]
[Round "07"]
[TimeControl "900+10"]
[Date "2021.12.27"]
[WhiteClock "0:01:38"]
[BlackClock "0:01:35"]

1. e4 {[%clk 0:15:00]}  e5 {[%clk 0:15:00]} 2. Nf3 {[%clk 0:15:00]}  Nc6 {[%clk 0:15:00]} 3. Bb5 {[%clk 0:15:00]}  a6 {[%clk 0:15:00]} 4. Ba4 {[%clk 0:15:00]}  Nf6 {[%clk 0:15:00]} 5. O-O {[%clk 0:15:00]}  Be7 {[%clk 0:15:00]} 6. Re1 {[%clk 0:15:00]}  b5 {[%clk 0:15:00]} 7. Bb3 {[%clk 0:15:00]}  d6 {[%clk 0:15:00]} 8. c3 {[%clk 0:15:00]}  O-O {[%clk 0:15:00]} 9. d4 {[%clk 0:16:57]}  Bg4 {[%clk 0:16:21]} 10. d5 {[%clk 0:16:57]}  Na5 {[%clk 0:16:21]} 11. Bc2 {[%clk 0:16:57]}  c6 {[%clk 0:16:21]} 12. h3 {[%clk 0:16:57]}  Bc8 {[%clk 0:16:21]} 13. dxc6 {[%clk 0:16:57]}  Qc7 {[%clk 0:16:21]} 14. Nbd2 {[%clk 0:16:57]}  Qxc6 {[%clk 0:16:21]} 15. Nf1 {[%clk 0:16:57]}  Be6 {[%clk 0:16:21]} 16. Ng5 {[%clk 0:16:57]}  Bd7 {[%clk 0:16:21]} 17. Ng3 {[%clk 0:16:57]}  Rac8 {[%clk 0:16:21]} 18. Bd3 {[%clk 0:16:57]}  Rfe8 {[%clk 0:16:21]} 19. Qe2 {[%clk 0:17:29]}  Bd8 {[%clk 0:15:38]} 20. Rd1 {[%clk 0:17:29]}  Nc4 {[%clk 0:14:40]} 21. b3 {[%clk 0:15:57]}  Nb6 {[%clk 0:14:40]} 22. Bb2 {[%clk 0:15:57]}  h6 {[%clk 0:12:48]} 23. Nf3 {[%clk 0:14:39]}  d5 {[%clk 0:11:44]} 24. Rac1 {[%clk 0:14:47]}  dxe4 {[%clk 0:11:44]} 25. Nxe4 {[%clk 0:14:47]}  Nfd5 {[%clk 0:11:44]} 26. Qf1 {[%clk 0:14:16]}  Nf4 {[%clk 0:08:39]} 27. Bb1 {[%clk 0:11:58]}  Bc7 {[%clk 0:08:39]} 28. Ba3 {[%clk 0:11:09]}  Bf5 {[%clk 0:06:02]} 29. Nd6 {[%clk 0:09:34]}  Bxb1 {[%clk 0:03:09]} 30. Nxc8 {[%clk 0:08:17]}  Bd3 {[%clk 0:03:09]} 31. Rxd3 {[%clk 0:07:09]}  Nxd3 {[%clk 0:01:53]} 32. Qxd3 {[%clk 0:07:09]}  Rxc8 {[%clk 0:01:53]} 33. Qe2 {[%clk 0:07:09]}  f6 {[%clk 0:01:53]} 34. c4 {[%clk 0:07:09]}  bxc4 {[%clk 0:01:53]} 35. bxc4 {[%clk 0:07:09]}  Rd8 {[%clk 0:01:53]} 36. Nh4 {[%clk 0:06:19]}  e4 {[%clk 0:01:28]} 37. Nf5 {[%clk 0:06:19]}  Kh7 {[%clk 0:01:28]} 38. Qg4 {[%clk 0:04:28]}  Qd7 {[%clk 0:00:49]} 39. c5 {[%clk 0:04:28]}  g6 {[%clk 0:00:49]} 40. Ng3 {[%clk 0:04:28]}  Qxg4 {[%clk 0:00:58]} 41. hxg4 {[%clk 0:02:34]}  Nd5 {[%clk 0:00:58]} 42. Nxe4 {[%clk 0:02:34]}  Re8 {[%clk 0:00:58]} 43. f3 {[%clk 0:02:34]}  f5 {[%clk 0:00:58]} 44. gxf5 {[%clk 0:02:34]}  gxf5 {[%clk 0:00:58]} 45. Rd1 {[%clk 0:02:34]}  fxe4 {[%clk 0:00:58]} 46. Rxd5 {[%clk 0:02:34]}  Bg3 {[%clk 0:00:58]} 47. Kf1 {[%clk 0:02:34]}  exf3 {[%clk 0:00:58]} 48. gxf3 {[%clk 0:02:34]}  Re3 {[%clk 0:00:58]} 49. Bb4 {[%clk 0:02:03]}  Rxf3+ {[%clk 0:01:13]} 50. Kg2 {[%clk 0:02:03]}  Rf4 {[%clk 0:01:13]} 51. Bd2 {[%clk 0:02:10]}  Rg4 {[%clk 0:01:13]} 52. Kf3 {[%clk 0:02:10]}  Rg6 {[%clk 0:01:13]} 53. Rd7+ {[%clk 0:02:10]}  Kg8 {[%clk 0:01:13]} 54. c6 {[%clk 0:02:10]}  Bh2 {[%clk 0:01:13]} 55. c7 {[%clk 0:02:10]}  Rf6+ {[%clk 0:01:13]} 56. Kg4 {[%clk 0:02:10]}  Bxc7 {[%clk 0:01:13]} 57. Rxc7 {[%clk 0:02:10]}  Rf2 {[%clk 0:01:13]} 58. Rd7 {[%clk 0:02:10]}  Kf8 {[%clk 0:01:13]} 59. a3 {[%clk 0:02:42]}  Ke8 {[%clk 0:00:41]} 60. Rd6 {[%clk 0:02:42]}  Ke7 {[%clk 0:00:41]} 61. Bb4 {[%clk 0:02:42]}  h5+ {[%clk 0:00:41]} 62. Kxh5 {[%clk 0:02:42]}  Rf5+ {[%clk 0:00:41]} 63. Kg6 {[%clk 0:02:42]}  Rb5 {[%clk 0:00:41]} 64. Rxa6+ {[%clk 0:02:42]}  Kd7 {[%clk 0:00:41]} 65. Kf6 {[%clk 0:02:42]}  Kc7 {[%clk 0:00:41]} 66. Re6 {[%clk 0:02:42]}  Kb7 {[%clk 0:00:41]} 67. Re4 {[%clk 0:02:42]}  Rh5 {[%clk 0:00:41]} 68. Ke6 {[%clk 0:02:42]}  Kb6 {[%clk 0:00:41]} 69. a4 {[%clk 0:01:57]}  Rh7 {[%clk 0:01:35]} 70. Kd5 {[%clk 0:01:57]}  Rh5+ {[%clk 0:01:35]} 71. Kc4 {[%clk 0:01:57]}  Rh6 {[%clk 0:01:35]} 72. Bc3 {[%clk 0:01:57]}  Rc6+ {[%clk 0:01:35]} 73. Kb4 {[%clk 0:01:57]}  Ka6 {[%clk 0:01:35]} 74. Bd4 {[%clk 0:01:57]}  Rd6 {[%clk 0:01:35]} 75. Bc5 {[%clk 0:01:57]}  Rh6 {[%clk 0:01:35]} 76. Re7 {[%clk 0:01:57]}  Rh4+ {[%clk 0:01:35]} 77. Kb3 {[%clk 0:01:57]}  Rh3+ {[%clk 0:01:35]} 78. Be3 {[%clk 0:01:57]}  Rh7 {[%clk 0:01:35]} 79. Rxh7 {[%clk 0:01:38]} 1-0


[Site "http://www.Chess.com"]

[Event "FIDE World Rapid Chess Championship 2021"]
[White "Heberla, Bartlomiej"]
[Black "Kobalia, Mikhail"]
[WhiteFideId "1115120"]
[BlackFideId "4119150"]
[WhiteElo "2437"]
[BlackElo "2543"]
[Result "1/2-1/2"]
[Round "07"]
[TimeControl "900+10"]
[Date "2021.12.27"]
[WhiteClock "0:00:26"]
[BlackClock "0:03:52"]

1. d4 {[%clk 0:15:00]}  d5 {[%clk 0:15:00]} 2. c4 {[%clk 0:15:00]}  c6 {[%clk 0:15:00]} 3. Nc3 {[%clk 0:15:00]}  dxc4 {[%clk 0:15:00]} 4. e3 {[%clk 0:15:00]}  b5 {[%clk 0:15:00]} 5. a4 {[%clk 0:15:00]}  b4 {[%clk 0:15:00]} 6. Nb1 {[%clk 0:15:00]}  Ba6 {[%clk 0:15:00]} 7. Nf3 {[%clk 0:15:00]}  Nf6 {[%clk 0:15:37]} 8. Be2 {[%clk 0:16:12]}  e6 {[%clk 0:15:37]} 9. O-O {[%clk 0:16:12]}  Be7 {[%clk 0:15:37]} 10. Nbd2 {[%clk 0:16:12]}  c3 {[%clk 0:15:37]} 11. bxc3 {[%clk 0:16:12]}  bxc3 {[%clk 0:15:37]} 12. Nb1 {[%clk 0:16:12]}  Qa5 {[%clk 0:15:37]} 13. Ba3 {[%clk 0:16:12]}  Bxa3 {[%clk 0:14:05]} 14. Rxa3 {[%clk 0:16:01]}  Ne4 {[%clk 0:14:05]} 15. Bd3 {[%clk 0:16:08]}  Nd2 {[%clk 0:11:12]} 16. Bxa6 {[%clk 0:12:43]}  Nxa6 {[%clk 0:10:50]} 17. Nbxd2 {[%clk 0:12:43]}  cxd2 {[%clk 0:10:50]} 18. Qxd2 {[%clk 0:10:51]}  Qxd2 {[%clk 0:09:50]} 19. Nxd2 {[%clk 0:10:51]}  c5 {[%clk 0:09:50]} 20. dxc5 {[%clk 0:10:51]}  Nxc5 {[%clk 0:09:50]} 21. Rc1 {[%clk 0:10:51]}  Nd7 {[%clk 0:09:50]} 22. Rc7 {[%clk 0:09:38]}  Nf6 {[%clk 0:08:59]} 23. Rb3 {[%clk 0:09:38]}  O-O {[%clk 0:09:08]} 24. g3 {[%clk 0:06:04]}  Nd5 {[%clk 0:09:08]} 25. Rcb7 {[%clk 0:05:30]}  a5 {[%clk 0:07:19]} 26. Nc4 {[%clk 0:05:30]}  Rac8 {[%clk 0:07:19]} 27. Ne5 {[%clk 0:04:57]}  Nb4 {[%clk 0:06:42]} 28. Ra7 {[%clk 0:01:28]}  f6 {[%clk 0:06:42]} 29. Nf3 {[%clk 0:01:28]}  Ra8 {[%clk 0:05:30]} 30. Rxa8 {[%clk 0:00:36]}  Rxa8 {[%clk 0:05:30]} 31. Rc3 {[%clk 0:00:36]}  e5 {[%clk 0:05:30]} 32. Rc5 {[%clk 0:00:36]}  Nd3 {[%clk 0:05:30]} 33. Rb5 {[%clk 0:00:36]}  Rc8 {[%clk 0:05:30]} 34. Rd5 {[%clk 0:00:26]}  Nc5 {[%clk 0:03:52]} 35. Nd2 {[%clk 0:00:26]}  Nxa4 {[%clk 0:03:52]} 1/2-1/2


[Site "http://www.Chess.com"]

[Event "FIDE World Rapid Chess Championship 2021"]
[White "Bellahcene, Bilel"]
[Black "Tari, Aryan"]
[WhiteFideId "696358"]
[BlackFideId "1510045"]
[WhiteElo "2397"]
[BlackElo "2542"]
[Result "0-1"]
[Round "07"]
[TimeControl "900+10"]
[Date "2021.12.27"]
[WhiteClock "0:00:21"]
[BlackClock "0:02:11"]

1. e4 {[%clk 0:15:00]}  e5 {[%clk 0:15:00]} 2. Nc3 {[%clk 0:15:00]}  Nf6 {[%clk 0:15:00]} 3. d4 {[%clk 0:15:00]}  exd4 {[%clk 0:15:00]} 4. Qxd4 {[%clk 0:15:00]}  Nc6 {[%clk 0:15:00]} 5. Qd3 {[%clk 0:15:00]}  Bb4 {[%clk 0:15:00]} 6. Bd2 {[%clk 0:15:51]}  O-O {[%clk 0:15:37]} 7. O-O-O {[%clk 0:15:51]}  Re8 {[%clk 0:15:37]} 8. f3 {[%clk 0:15:51]}  d6 {[%clk 0:14:37]} 9. a3 {[%clk 0:13:49]}  Bc5 {[%clk 0:14:05]} 10. Bg5 {[%clk 0:12:16]}  h6 {[%clk 0:14:05]} 11. Bh4 {[%clk 0:12:16]}  Ne5 {[%clk 0:14:05]} 12. Qe2 {[%clk 0:12:16]}  b5 {[%clk 0:12:03]} 13. Nd5 {[%clk 0:11:33]}  g5 {[%clk 0:09:59]} 14. Bf2 {[%clk 0:11:33]}  Bxf2 {[%clk 0:10:08]} 15. Qxf2 {[%clk 0:09:39]}  Nxd5 {[%clk 0:10:08]} 16. Rxd5 {[%clk 0:09:39]}  Be6 {[%clk 0:10:08]} 17. Rd2 {[%clk 0:09:39]}  b4 {[%clk 0:10:08]} 18. axb4 {[%clk 0:08:32]}  a5 {[%clk 0:07:57]} 19. b5 {[%clk 0:08:32]}  a4 {[%clk 0:07:57]} 20. Qe3 {[%clk 0:08:32]}  Qf6 {[%clk 0:07:16]} 21. Qc3 {[%clk 0:06:49]}  a3 {[%clk 0:07:16]} 22. bxa3 {[%clk 0:06:49]}  Ra7 {[%clk 0:07:16]} 23. b6 {[%clk 0:06:13]}  cxb6 {[%clk 0:06:57]} 24. Bb5 {[%clk 0:02:31]}  Rc8 {[%clk 0:06:57]} 25. Qb2 {[%clk 0:02:31]}  Qf4 {[%clk 0:04:15]} 26. Ne2 {[%clk 0:02:29]}  Qe3 {[%clk 0:04:15]} 27. Re1 {[%clk 0:00:16]}  Rc5 {[%clk 0:04:02]} 28. Kd1 {[%clk 0:00:16]}  Bc4 {[%clk 0:01:56]} 29. Nd4 {[%clk 0:00:28]}  Qxa3 {[%clk 0:01:56]} 30. Qxa3 {[%clk 0:00:28]}  Rxa3 {[%clk 0:01:56]} 31. Bxc4 {[%clk 0:00:28]}  Nxc4 {[%clk 0:01:56]} 32. Rf2 {[%clk 0:00:28]}  Ne3+ {[%clk 0:01:56]} 33. Kd2 {[%clk 0:00:28]}  Nxc2 {[%clk 0:01:56]} 34. Nxc2 {[%clk 0:00:28]}  Rxc2+ {[%clk 0:01:56]} 35. Kxc2 {[%clk 0:00:28]}  Ra2+ {[%clk 0:01:56]} 36. Kd3 {[%clk 0:00:28]}  Rxf2 {[%clk 0:01:56]} 37. Rg1 {[%clk 0:00:28]}  Kg7 {[%clk 0:01:56]} 38. h3 {[%clk 0:00:28]}  Kf6 {[%clk 0:01:56]} 39. Ke3 {[%clk 0:00:28]}  Rb2 {[%clk 0:01:56]} 40. Rd1 {[%clk 0:00:21]}  Ke6 {[%clk 0:02:11]} 41. g3 {[%clk 0:00:21]}  b5 {[%clk 0:02:11]} 42. h4 {[%clk 0:00:21]}  b4 {[%clk 0:02:11]} 43. hxg5 {[%clk 0:00:21]}  hxg5 {[%clk 0:02:11]} 44. Kd4 {[%clk 0:00:21]}  Rg2 {[%clk 0:02:11]} 0-1


[Site "http://www.Chess.com"]